Cogmind - Beta 13 @@@ ROGUE MODE // 2024.04.15 @ 22:45:27 Player: Calliope Result: Destroyed by H-77 Assassin with Coil Gun Performance ------------- Evolutions (6) 3000 Regions Visited (13) 2600 Robots Destroyed (109) 545 Value Destroyed (4152) 4152 Prototype IDs (4) 80 Alien Tech Used (1) 200 Bonus (475) 475 TOTAL SCORE: 11052 Bonus ------- High Alert Combat Kills 109 Follower Combat Kills 933 Friendly Fire -567 Cogmind --------- Core Integrity 0/1150 Matter 300/300 Energy 99/100 System Corruption 1% Temperature Cool (0) Movement Core (50) Location -4/Upper Caves Parts ------- > --- POWER (2) -------- (None) > --- PROPULSION (4) --- (None) > --- UTILITY (8) ------ Machine Analyzer 0b10 Decoder Chip [Looter] Advanced Hacking Suite > --- WEAPON (5) ------- (None) > --- INVENTORY (5) ---- Advanced Treads Advanced Treads Coolant Injector Heavy Disruptor Cannon Peak State ------------ > --- POWER ------------ Fission Core Light Antimatter Reactor > --- PROPULSION ------- Heavy Treads Heavy Treads > --- UTILITY ---------- Improved Cooling System High-capacity Storage Unit Enhanced Optical Array Improved Launcher Guidance Computer Armor Integrity Analyzer Armor Integrity Analyzer Advanced Transmission Jammer Advanced Shield Generator > --- WEAPON ----------- Improved Arc Projector Disruptor Cannon Advanced Assault Cannon Heavy Missile Launcher Heavy Missile Launcher > --- INVENTORY -------- Heavy Deuterium Engine Advanced Treads Advanced Treads Advanced Treads Advanced Treads Advanced Treads Armored Medium Treads Enhanced Armored Medium Treads Coolant Injector Compact Matter Pod Point Defense Array Hacking Suite Arc Projector Improved Spread Laser Heavy Disruptor Cannon Advanced Assault Cannon Advanced Assault Cannon [Rating: 105] Favorites ----------- Power Heavy Deuterium Engine Engine Heavy Deuterium Engine Power Core Light Nuclear Core Reactor Light Antimatter Reactor Propulsion Heavy Treads Treads Heavy Treads Leg Aluminum Leg Flight Unit VTOL Module Utility Hacking Suite Device Improved Cooling System Storage High-capacity Storage Unit Processor Armor Integrity Analyzer Hackware Hacking Suite Protection Reactive Plating Weapon Heavy Missile Launcher Energy Gun Improved Arc Projector Energy Cannon Disruptor Cannon Ballistic Gun Heavy Assault Rifle Ballistic Cannon Advanced Assault Cannon Launcher Heavy Missile Launcher Build | -11 -10 -9 -8 -7 -6 -6 -6 -5 -5 -5 -4 -4 -4 ------- Run | Yrd Mat Mat Mat Fac Fac Was Fac Fac Upp Upp Fac Upp Upp Slots Evolved 12 | . . 2 2 2 2 . . 2 . . 2 . . Power 1 | . . . . . . . . . . . 1 . . Propulsion 2 | . . . . 2 . . . . . . . . . Utility 6 | . . 2 1 . 1 . . 1 . . 1 . . Weapon 3 | . . . 1 . 1 . . 1 . . . . . Parts Attached 144 | 6 9 40 37 12 4 11 . 2 1 . 10 6 6 Power 21 | 1 2 7 6 2 . . . . . . 2 . 1 Engine 8 | 1 1 3 1 2 . . . . . . . . . Core 11 | . 1 4 5 . . . . . . . 1 . . Reactor 2 | . . . . . . . . . . . 1 . 1 Propulsion 36 | 2 3 17 5 3 . 4 . . . . . 1 1 Treads 18 | 2 . 4 5 3 . 4 . . . . . . . Leg 16 | . 3 13 . . . . . . . . . . . Wheel . | . . . . . . . . . . . . . . Hover . | . . . . . . . . . . . . . . Flight 2 | . . . . . . . . . . . . 1 1 Utility 38 | 1 1 7 8 3 3 3 . 1 1 . 4 2 4 Device 12 | . . 2 2 1 . 1 . . 1 . 3 2 . Storage 5 | 1 1 2 . 1 . . . . . . . . . Processor 9 | . . 1 1 . 2 2 . 1 . . . . 2 Hackware 5 | . . 2 1 . . . . . . . . . 2 Protection 7 | . . . 4 1 1 . . . . . 1 . . Artifact . | . . . . . . . . . . . . . . Weapon 49 | 2 3 9 18 4 1 4 . 1 . . 4 3 . Energy Gun 17 | . 1 4 3 3 1 1 . . . . 1 3 . Energy Cannon 1 | . . . . . . . . . . . 1 . . Ballistic Gun 13 | 2 2 5 4 . . . . . . . . . . Ballistic Cannon 11 | . . . 8 . . . . 1 . . 2 . . Launcher 7 | . . . 3 1 . 3 . . . . . . . Special Weapon . | . . . . . . . . . . . . . . Impact Weapon . | . . . . . . . . . . . . . . Slashing Weapon . | . . . . . . . . . . . . . . Piercing Weapon . | . . . . . . . . . . . . . . Special Melee Weapon . | . . . . . . . . . . . . . . Unidentified Prototypes 5 | . . 1 . 2 . 1 . . 1 . . . . Corrupted Parts 2 | . . 2 . . . . . . . . . . . System Corruption 7 | . . 7 . . . . . . . . . . . Parts Lost 28 | . 5 7 6 . . . . . . . 8 1 1 Power 5 | . 1 4 . . . . . . . . . . . Propulsion 5 | . 2 . 2 . . . . . . . . . 1 Utility 5 | . . 1 2 . . . . . . . 2 . . Weapon 13 | . 2 2 2 . . . . . . . 6 1 . Highest Loss Streak 8 | . 3 3 5 . . . . . . . 8 1 1 To Critical Strikes . | . . . . . . . . . . . . . . Average Slot Usage (%) 77 | . 80 74 98 98 100 87 86 88 87 88 81 17 4 Engine 3 | . 5 2 . 6 6 6 6 5 5 5 . . . Core 3 | . 6 7 8 . . . . . . . 4 . . Treads 10 | . 12 3 18 29 26 14 13 11 11 11 9 . . Leg 4 | . 14 18 . . . . . . . . . . . Device 5 | . . 2 9 7 6 6 6 5 4 5 9 7 . Storage 7 | . 14 10 9 7 6 6 6 5 5 5 4 . . Processor 10 | . . 3 4 7 13 19 20 23 23 23 19 . 3 Hackware 4 | . . 3 11 7 6 6 6 5 5 5 3 . 1 Protection 2 | . . . 9 6 5 . . . . . . . . Energy Gun 5 | . 1 9 3 10 20 6 6 5 5 5 4 5 . Ballistic Gun 5 | . 25 12 8 . . . . . . . . . . Ballistic Cannon 4 | . . . 12 11 6 1 . 5 5 5 4 . . Launcher 6 | . . . 1 . . 17 20 17 17 17 13 . . Naked Turns 584 | . . . . . . . . . . . 24 282 278 Heaviest Build 105 | 12 12 30 59 79 80 81 79 85 85 85 105 42 16 Greatest Support 140 | 40 40 40 44 88 88 140 140 140 140 140 140 4 6 Greatest Overweight (x) 13 | . 3 3 1 . . 1 . . . . 1 13 2 Average Overweight (x) . | . . . . . . . . . . . . 1 . Largest Inventory Capacity 25 | 8 25 15 15 20 20 20 20 20 20 20 20 5 5 Average Capacity 13 | 6 8 8 15 19 20 20 20 20 20 20 18 5 5 Most Carried 20 | 4 8 8 15 20 19 20 20 20 20 20 20 5 5 Average Carried 13 | 2 5 7 13 18 18 19 19 18 19 20 17 5 5 Final Capacity 20 | 8 8 15 15 20 20 20 20 20 20 20 5 5 5 Final Carried 20 | 4 8 7 15 20 18 20 20 20 20 20 5 5 5 Class Distribution -------------------- 23% | Scavenger-Bomber 22% | Mutant 19% | Scavenger-Mutant 13% | Tank 9% | Scavenger-Gunner 8% | Scavenger-Tank Dominant Class ---------------- Mutant | -10/Materials Scavenger-Mutant | -9/Materials Scavenger-Tank | -8/Materials Tank | -7/Factory Gunner | -6/Factory Scavenger-Gunner | -6/Waste Scavenger-Gunner | -6/Factory Scavenger-Gunner | -5/Factory Scavenger-Bomber | -5/Upper Caves Scavenger-Bomber | -5/Upper Caves Scavenger-Bomber | -4/Factory Mutant | -4/Upper Caves Mutant | -4/Upper Caves Resources | -11 -10 -9 -8 -7 -6 -6 -6 -5 -5 -5 -4 -4 -4 ----------- Run | Yrd Mat Mat Mat Fac Fac Was Fac Fac Upp Upp Fac Upp Upp Matter Collected 3712 | 260 211 646 1010 217 22 437 . 168 232 . 284 165 60 Remotely . | . . . . . . . . . . . . . . Salvage Created 4378 | . 512 1495 731 202 47 693 . 138 415 . 41 104 . Parts 202 | . 30 88 35 10 6 6 . 8 10 . 1 8 . Haulers Intercepted . | . . . . . . . . . . . . . . Recyclers Shooed 1 | . . 1 . . . . . . . . . . . Parts Field Recycled . | . . . . . . . . . . . . . . Retrieved Matter . | . . . . . . . . . . . . . . Parts Self-Destructed 11 | . . . . . . . . . 4 . . 7 . Prevented . | . . . . . . . . . . . . . . Kills | -11 -10 -9 -8 -7 -6 -6 -6 -5 -5 -5 -4 -4 -4 ------- Run | Yrd Mat Mat Mat Fac Fac Was Fac Fac Upp Upp Fac Upp Upp Combat Hostiles Destroyed 88 | . 12 29 18 5 . 3 . 4 11 . 2 4 . Guns 49 | . 12 28 6 . . . . . . . . 3 . Cannons 15 | . . . 10 2 . . . 1 . . 2 . . AOE 23 | . . 1 2 3 . 3 . 3 11 . . . . Classes Destroyed 14 | . 5 4 3 . . 1 . . . . 1 . . Worker 4 | . 1 1 . 1 1 . . . . . . . . Builder 5 | . . 1 2 1 . . . 1 . . . . . Tunneler 1 | . . . . . . . . . . . 1 . . Recycler 1 | . 1 . . . . . . . . . . . . Operator 6 | . . 3 1 . 1 . . . . . 1 . . Watcher 2 | . 1 1 . . . . . . . . . . . Swarmer 10 | . 3 . . . . . . 3 . . . 4 . Grunt 51 | . 9 19 11 3 . . . . 9 . . . . Brawler 4 | . . . 2 . . . . . 2 . . . . Duelist 2 | . . 2 . . . . . . . . . . . Sentry 14 | . . 8 3 2 . . . . . . 1 . . Hunter 3 | . . . 1 . . . . 1 . . 1 . . Heavy 1 | . . . 1 . . . . . . . . . . Compactor 3 | . . . . . . 3 . . . . . . . Thug 1 | . . . . . . 1 . . . . . . . Butcher 1 | . . . . . . . . 1 . . . . . Best Kill Streak 8 | . 5 6 4 5 1 1 . 3 8 . 2 4 . Combat Bots Only 8 | . 3 6 4 3 . 1 . 3 8 . 1 4 . Max Kills in Single Turn 8 | . 2 2 2 5 1 2 . 4 8 . 1 1 . Gunslinging 1 | . 1 1 . . . . . . . . . . . Exploded 8 | . . 1 1 3 . 1 . 2 8 . . . . Melee . | . . . . . . . . . . . . . . Uniques/NPCs Destroyed . | . . . . . . . . . . . . . . Combat | -11 -10 -9 -8 -7 -6 -6 -6 -5 -5 -5 -4 -4 -4 -------- Run | Yrd Mat Mat Mat Fac Fac Was Fac Fac Upp Upp Fac Upp Upp Hostile Shots Fired 683 | . 108 140 106 55 . . . 9 4 . 146 75 40 Missed 226 | . 26 41 26 18 . . . 3 1 . 59 28 24 Damage Taken 7572 | . 974 1385 1536 473 131 . 9 169 87 . 1504 977 327 Core 1792 | . 240 196 166 38 . . . . . . 192 654 306 Absorbed by Shields 171 | . . . . . . . . . . . 171 . . Ignored by Resistances 172 | . . . 151 21 . . . . . . . . . Regen/Repaired (Parts) 640 | . . 172 . 178 . . . 12 47 . 231 . . Core Remaining (%) 74 | 100 4 51 69 94 . . 100 . . 100 . . . Volleys Fired 315 | . 85 102 63 15 3 6 . 5 20 . 10 6 . Largest 5 | . 2 2 3 3 4 3 . 5 5 . 5 1 . Hottest 230 | . 60 101 144 171 213 143 . 230 230 . 230 94 . Shots Fired 699 | . 164 197 178 46 10 18 . 15 29 . 36 6 . Gun 511 | . 164 197 93 25 9 6 . 3 3 . 5 6 . Cannon 138 | . . . 77 20 1 . . 5 19 . 16 . . Launcher 50 | . . . 8 1 . 12 . 7 7 . 15 . . Special . | . . . . . . . . . . . . . . Kinetic 479 | . 146 137 139 20 1 . . 5 19 . 12 . . Thermal 100 | . 18 46 25 5 . . . . . . . 6 . Explosive 42 | . . . . 1 . 12 . 7 7 . 15 . . Electromagnetic 78 | . . 14 14 20 9 6 . 3 3 . 9 . . Robot Hit Streak 16 | . 15 14 16 9 3 11 . 5 4 . 7 7 . Robot Miss Streak 8 | . 4 2 8 2 2 1 . 2 3 . 4 1 . Penetration Max . | . . . . . . . . . . . . . . Secondary Targets 6 | . 2 3 1 . . . . . . . . . . Max Gunslinging Chain 1 | . 1 1 1 . . . . . . . . . . Shots Hit Robots 451 | . 101 142 120 30 4 15 . 7 4 . 23 5 . Core Hits 261 | . 38 68 58 23 2 13 . 11 32 . 13 3 . Critical Kills 1 | . 1 . . . . . . . . . . . . Critical Parts Destroyed 2 | . 1 1 . . . . . . . . . . . Critical Strikes 11 | . 2 2 4 2 . . . 1 . . . . . Burn 3 | . . 1 2 . . . . . . . . . . Destroy 3 | . 2 1 . . . . . . . . . . . Blast 5 | . . . 2 2 . . . 1 . . . . . Melee Attacks . | . . . . . . . . . . . . . . Impact . | . . . . . . . . . . . . . . Slashing . | . . . . . . . . . . . . . . Piercing . | . . . . . . . . . . . . . . Sneak Attacks . | . . . . . . . . . . . . . . Combat Hostiles . | . . . . . . . . . . . . . . Follow-up Attacks . | . . . . . . . . . . . . . . Damage Inflicted 10897 | . 923 1959 2303 762 102 1513 . 697 1454 . 1040 144 . Guns 4263 | . 923 1913 975 162 37 17 . 24 25 . 43 144 . Cannons 1912 | . . . 1149 387 . . . 83 57 . 236 . . Explosions 4722 | . . 46 179 213 65 1496 . 590 1372 . 761 . . Melee . | . . . . . . . . . . . . . . Ramming . | . . . . . . . . . . . . . . Kinetic 4320 | . 792 1111 1710 387 . . . 83 57 . 180 . . Thermal 1430 | . 131 586 321 129 65 . . 54 . . . 144 . Explosive 4378 | . . . . 213 . 1496 . 536 1372 . 761 . . Electromagnetic 769 | . . 262 272 33 37 17 . 24 25 . 99 . . Impact . | . . . . . . . . . . . . . . Slashing . | . . . . . . . . . . . . . . Piercing . | . . . . . . . . . . . . . . Highest Corruption 7 | . 1 7 1 2 . . . . . . . 1 1 Average Corruption 2 | . 1 6 1 1 . . . . . . . 1 1 Corruption Purged . | . . . . . . . . . . . . . . Corruption Blocked . | . . . . . . . . . . . . . . Effects 44 | . 2 27 7 1 . . . . . . . 2 5 Message Errors 5 | . . 3 . . . . . . . . . 1 1 Matter Fused 15 | . . 10 4 . . . . . . . . 1 . Heat Flow Errors 2 | . . 1 . . . . . . . . . . 1 Energy Discharges 7 | . 2 5 . . . . . . . . . . . Parts Rejected 2 | . . 2 . . . . . . . . . . . Data Loss (minor) 7 | . . 3 2 . . . . . . . . . 2 Misfires 3 | . . 1 1 1 . . . . . . . . . Alerts 2 | . . 1 . . . . . . . . . . 1 Weapon Failures 1 | . . 1 . . . . . . . . . . . Overload Shots . | . . . . . . . . . . . . . . Overflow Damage 191 | . . . 49 16 . 115 . . . . 11 . . Projectiles 22 | . . . 6 16 . . . . . . . . . Explosions 169 | . . . 43 . . 115 . . . . 11 . . Melee . | . . . . . . . . . . . . . . Knockbacks 28 | . . . 23 1 . . . . 2 . 2 . . Impact . | . . . . . . . . . . . . . . Kinetic 28 | . . . 23 1 . . . . 2 . 2 . . Secondary . | . . . . . . . . . . . . . . Self-Inflicted Damage 440 | . . 20 52 114 131 . . 50 11 . 62 . . Shots 10 | . . 1 3 1 2 . . 1 1 . 1 . . Rammed . | . . . . . . . . . . . . . . Targets Rammed . | . . . . . . . . . . . . . . Kicked . | . . . . . . . . . . . . . . Crushed . | . . . . . . . . . . . . . . Highest Temperature 408 | . 76 408 303 198 180 72 . . 6 . 230 216 212 Average Temperature 76 | . 18 85 104 104 84 36 . . 6 . 78 49 126 Received Heat Transfer 1972 | . 468 594 558 75 . . . . 18 . 133 63 63 Effects 6 | . . 5 1 . . . . . . . . . . Shutdowns 2 | . . 2 . . . . . . . . . . . Energy Bleed 2 | . . 1 1 . . . . . . . . . . Interference 2 | . . 2 . . . . . . . . . . . Siege Activations . | . . . . . . . . . . . . . . Robots Corrupted . | . . . . . . . . . . . . . . Combat Hostiles . | . . . . . . . . . . . . . . Parts Fried . | . . . . . . . . . . . . . . Impact Corruptions . | . . . . . . . . . . . . . . Robots Melted . | . . . . . . . . . . . . . . Combat Hostiles . | . . . . . . . . . . . . . . Parts Melted 7 | . . 3 3 . . . . . . . . 1 . Heat Transferred 3050 | . 300 1493 962 110 . . . . . . . 185 . Parts Sabotaged . | . . . . . . . . . . . . . . Parts Stolen . | . . . . . . . . . . . . . . Parts Stripped . | . . . . . . . . . . . . . . Power Chain Reactions 4 | . . 1 1 . 1 . . 1 . . . . . Alert | -11 -10 -9 -8 -7 -6 -6 -6 -5 -5 -5 -4 -4 -4 ------- Run | Yrd Mat Mat Mat Fac Fac Was Fac Fac Upp Upp Fac Upp Upp Peak Influence 1323 | . 122 448 217 164 97 104 22 1323 . . 365 . . Initial 237 | . . 46 157 46 6 33 . 10 . . 237 . . Average 128 | . 38 142 63 49 81 60 19 745 . . 239 . . Maximum Alert Level 4 | . . 2 1 . . . . 4 . . 1 . . Low Security (%) 79 | 100 100 69 95 100 100 100 100 20 . . 7 . . Level 1 15 | . . 27 4 . . . . 12 . . 92 . . Level 2 1 | . . 2 . . . . . 5 . . . . . Level 3 1 | . . . . . . . . 19 . . . . . Level 4 2 | . . . . . . . . 41 . . . . . Level 5 . | . . . . . . . . . . . . . . High Security . | . . . . . . . . . . . . . . Max Security . | . . . . . . . . . . . . . . Squads Dispatched 22 | . 3 8 3 2 . . . 4 . . 2 . . Investigation 8 | . 1 5 1 . . . . . . . 1 . . Extermination 1 | . . . . 1 . . . . . . . . . Reinforcement 10 | . 2 3 2 1 . . . 1 . . 1 . . Assault . | . . . . . . . . . . . . . . Garrison 3 | . . . . . . . . 3 . . . . . Intercept . | . . . . . . . . . . . . . . Searches Triggered . | . . . . . . . . . . . . . . Construction Impeded 1 | . . . . . . . . 1 . . . . . Haulers Reinforced 1 | . . . . . . . . . . . 1 . . Active Scanning Responses . | . . . . . . . . . . . . . . Cargo Convoy Interrupts . | . . . . . . . . . . . . . . Stealth | -11 -10 -9 -8 -7 -6 -6 -6 -5 -5 -5 -4 -4 -4 --------- Run | Yrd Mat Mat Mat Fac Fac Was Fac Fac Upp Upp Fac Upp Upp Distress Signals 4 | . 2 . 1 . . . . 1 . . . . . Communications Jammed 4 | . . . . . . . . . . . 4 . . Distress Signals 4 | . . . . . . . . . . . 4 . . Times Spotted 187 | . 28 45 32 6 1 6 . 18 13 . 13 8 17 Peak Tracking Total 13 | . 4 6 4 3 1 3 . 6 9 . 7 4 13 Tactical Retreats 16 | . 1 3 3 . . . . 1 . . 2 2 4 Traps | -11 -10 -9 -8 -7 -6 -6 -6 -5 -5 -5 -4 -4 -4 ------- Run | Yrd Mat Mat Mat Fac Fac Was Fac Fac Upp Upp Fac Upp Upp Traps Triggered 6 | . 2 3 . . 1 . . . . . . . . Indirectly . | . . . . . . . . . . . . . . Trap Hack Attempts . | . . . . . . . . . . . . . . Triggered . | . . . . . . . . . . . . . . Disarmed . | . . . . . . . . . . . . . . Reprogrammed . | . . . . . . . . . . . . . . Reused . | . . . . . . . . . . . . . . Traps Extracted . | . . . . . . . . . . . . . . Installed . | . . . . . . . . . . . . . . Triggered 2 | . . . 1 . . . . . . . . 1 . Machines | -11 -10 -9 -8 -7 -6 -6 -6 -5 -5 -5 -4 -4 -4 ---------- Run | Yrd Mat Mat Mat Fac Fac Was Fac Fac Upp Upp Fac Upp Upp Machines Disabled 32 | . . 4 2 4 3 . . 15 3 . 1 . . Max in Single Turn 2 | . . 1 1 2 2 . . 1 2 . . . . Machines Repaired . | . . . . . . . . . . . . . . Machines Dismantled . | . . . . . . . . . . . . . . Machines Sabotaged . | . . . . . . . . . . . . . . Overloaded Fab Kills . | . . . . . . . . . . . . . . Hacking | -11 -10 -9 -8 -7 -6 -6 -6 -5 -5 -5 -4 -4 -4 --------- Run | Yrd Mat Mat Mat Fac Fac Was Fac Fac Upp Upp Fac Upp Upp Machines Accessed 31 | . 6 9 4 6 1 . . 1 1 . 1 2 . Terminals 20 | . 4 7 3 4 1 . . . . . . 1 . Fabricators . | . . . . . . . . . . . . . . Repair Stations 5 | . . 1 . 2 . . . 1 . . 1 . . Recycling Units 4 | . 2 1 1 . . . . . . . . . . Scanalyzers . | . . . . . . . . . . . . . . Garrison Access . | . . . . . . . . . . . . . . Total Hacks 99 | . 16 45 16 12 2 . . 2 1 . 3 2 . Successful 52 | . 7 17 12 9 1 . . 1 1 . 2 2 . Failed 47 | . 9 28 4 3 1 . . 1 . . 1 . . Catastrophic 5 | . 2 3 . . . . . . . . . . . Database Lockouts . | . . . . . . . . . . . . . . Manual 66 | . 14 31 12 7 . . . . 2 . . . . Terminals 66 | . 10 32 13 8 2 . . . . . . 1 . Fabricators . | . . . . . . . . . . . . . . Repair Stations 17 | . . 8 . 4 . . . 2 . . 3 . . Recycling Units 14 | . 6 5 3 . . . . . . . . . . Scanalyzers . | . . . . . . . . . . . . . . Garrison Access . | . . . . . . . . . . . . . . Terminal Hacks 21 | . 2 5 8 2 1 . . . 1 . . 2 . Record 4 | . . 1 1 . . . . . 1 . . 1 . Open Door 1 | . . . . . . . . . . . . 1 . Open DSF 2 | . . . . 1 1 . . . . . . . . Level Access Points 1 | . . 1 . . . . . . . . . . . Alert Level 2 | . . . 2 . . . . . . . . . . Unreport Threat 10 | . 2 3 4 1 . . . . . . . . . Zone Layout 1 | . . . 1 . . . . . . . . . . Fabricator Hacks . | . . . . . . . . . . . . . . Repair Station Hacks 14 | . . 7 . 4 . . . 1 . . 2 . . Scan Component 8 | . . 4 . 2 . . . 1 . . 1 . . Repair 6 | . . 3 . 2 . . . . . . 1 . . Recycling Unit Hacks 5 | . 1 2 2 . . . . . . . . . . Report Inventory 3 | . 1 1 1 . . . . . . . . . . Retrieve Components 2 | . . 1 1 . . . . . . . . . . Scanalyzer . | . . . . . . . . . . . . . . Garrison Access Hacks . | . . . . . . . . . . . . . . Unauthorized Hacks 12 | . 4 3 2 3 . . . . . . . . . Terminals 9 | . 3 2 1 3 . . . . . . . . . Botnet 9 | . 3 2 1 3 . . . . . . . . . Fabricators . | . . . . . . . . . . . . . . Repair Stations . | . . . . . . . . . . . . . . Recycling Units 3 | . 1 1 1 . . . . . . . . . . Reject 3 | . 1 1 1 . . . . . . . . . . Scanalyzers . | . . . . . . . . . . . . . . Garrison Access . | . . . . . . . . . . . . . . Data Cores Recovered . | . . . . . . . . . . . . . . Used . | . . . . . . . . . . . . . . Hacking Detections 26 | . 6 9 4 4 1 . . 1 . . 1 . . Full Trace Events 4 | . . 4 . . . . . . . . . . . Feedback Events . | . . . . . . . . . . . . . . Feedback Blocked . | . . . . . . . . . . . . . . Robot Schematics Acquired . | . . . . . . . . . . . . . . Robots Built . | . . . . . . . . . . . . . . Authchips . | . . . . . . . . . . . . . . Time . | . . . . . . . . . . . . . . Total Robot Build Rating . | . . . . . . . . . . . . . . Part Schematics Acquired . | . . . . . . . . . . . . . . Parts Built . | . . . . . . . . . . . . . . Authchips . | . . . . . . . . . . . . . . Time . | . . . . . . . . . . . . . . Total Part Build Rating . | . . . . . . . . . . . . . . Parts Repaired 6 | . . 3 . 2 . . . . . . 1 . . Time 277 | . . 102 . 76 . . . . . . 99 . . Parts Recycled . | . . . . . . . . . . . . . . Recycled Matter . | . . . . . . . . . . . . . . Retrieved Matter . | . . . . . . . . . . . . . . Retrieved Components 20 | . . 10 10 . . . . . . . . . . Parts Scanalyzed . | . . . . . . . . . . . . . . Part Schematics Acquired . | . . . . . . . . . . . . . . Parts Damaged . | . . . . . . . . . . . . . . Bothacking | -11 -10 -9 -8 -7 -6 -6 -6 -5 -5 -5 -4 -4 -4 ------------ Run | Yrd Mat Mat Mat Fac Fac Was Fac Fac Upp Upp Fac Upp Upp Used RIF Installer . | . . . . . . . . . . . . . . Robots Hacked . | . . . . . . . . . . . . . . Non-combat . | . . . . . . . . . . . . . . Combat . | . . . . . . . . . . . . . . Robot Hacks Applied . | . . . . . . . . . . . . . . Relay Couplers Released . | . . . . . . . . . . . . . . Fabnet Peak Effective % . | . . . . . . . . . . . . . . Robots Rewired . | . . . . . . . . . . . . . . Allies Hacked . | . . . . . . . . . . . . . . Hacks Repelled . | . . . . . . . . . . . . . . Allies | -11 -10 -9 -8 -7 -6 -6 -6 -5 -5 -5 -4 -4 -4 -------- Run | Yrd Mat Mat Mat Fac Fac Was Fac Fac Upp Upp Fac Upp Upp Total Allies 20 | . . . . . . 20 . . . . . . . Largest Group 19 | . . . . . . 19 16 16 5 5 5 . . Highest-Rated Group 702 | . . . . . . 702 625 625 211 211 211 . . Highest-Rated Ally 50 | . . . . . . 50 50 50 50 50 50 . . Total Orders . | . . . . . . . . . . . . . . Ally Attacks 176 | . . . . . . 58 4 80 12 . 22 . . Total Damage 6393 | . . . . . . 2140 131 2766 792 . 564 . . Kills 31 | . . . . . . 6 1 17 4 . 3 . . Allies Corrupted 1 | . . . . . . . . 1 . . . . . Allies Melted . | . . . . . . . . . . . . . . Intel | -11 -10 -9 -8 -7 -6 -6 -6 -5 -5 -5 -4 -4 -4 ------- Run | Yrd Mat Mat Mat Fac Fac Was Fac Fac Upp Upp Fac Upp Upp Robot Analysis Total . | . . . . . . . . . . . . . . Derelict Logs Recovered 3 | . . . . . . . . . 2 . . 1 . Drone Launches . | . . . . . . . . . . . . . . Drone Recoveries . | . . . . . . . . . . . . . . Exploration | -11 -10 -9 -8 -7 -6 -6 -6 -5 -5 -5 -4 -4 -4 ------------- Run | Yrd Mat Mat Mat Fac Fac Was Fac Fac Upp Upp Fac Upp Upp Turns Passed 14114 | 117 1147 2779 2270 1000 132 570 77 487 3189 39 548 1292 467 Spaces Moved 7345 | 61 616 935 838 539 77 332 41 280 1864 23 271 675 793 Core 1356 | 3 8 2 . . . . . . . . 56 549 738 Treads 4607 | 58 232 108 838 539 77 332 41 280 1864 23 215 . . Legs 1201 | . 376 825 . . . . . . . . . . . Wheels . | . . . . . . . . . . . . . . Hover . | . . . . . . . . . . . . . . Flight 181 | . . . . . . . . . . . . 126 55 Fastest Speed 40 | 50 120 120 160 145 145 145 160 160 160 160 50 50 40 Average Speed 149 | 154 136 125 230 145 145 158 160 160 160 160 139 186 49 Slowest Speed 835 | 160 200 200 240 145 145 240 160 160 160 160 160 835 200 Overloaded Moves . | . . . . . . . . . . . . . . Propulsion Burnouts . | . . . . . . . . . . . . . . Robots Hopped . | . . . . . . . . . . . . . . Cave-ins Triggered . | . . . . . . . . . . . . . . Exploration Rate (%) 41 | 5 82 61 44 11 3 89 2 13 97 10 10 77 81 Regions Visited 13 Branch Regions 4 Pre-discovered Areas 1 | . . . . . . . . . . . . 1 . Known Exits Taken 3 | . . 1 . . . . . . 1 . 1 . . Unknown Exits Taken 8 | 1 1 . 1 1 . . 1 1 . 1 . 1 . Scrap Searched 7 | . . . . . . . . . 3 . . 1 3 Spaces Dug 19 | . . . . . . . . . 19 . . . . Terrain Destroyed 386 | . . . 12 20 37 91 . 88 55 . 82 1 . Melee . | . . . . . . . . . . . . . . Projectile 24 | . . . 11 4 . . . . 7 . 1 1 . AOE 362 | . . . 1 16 37 91 . 88 48 . 81 . . Terrain Rammed . | . . . . . . . . . . . . . . Walls Destroyed . | . . . . . . . . . . . . . . Machines Disabled . | . . . . . . . . . . . . . . Actions | -11 -10 -9 -8 -7 -6 -6 -6 -5 -5 -5 -4 -4 -4 --------- Run | Yrd Mat Mat Mat Fac Fac Was Fac Fac Upp Upp Fac Upp Upp Total 9863 | 81 790 2357 1050 725 92 359 53 308 2045 25 416 700 862 Wait 1889 | 11 65 1243 56 135 6 . 11 20 154 3 112 12 61 Move 7333 | 60 615 934 837 538 77 331 40 279 1863 22 270 674 793 Hop . | . . . . . . . . . . . . . . Pick Up 73 | 4 8 14 22 14 . 1 1 2 2 . 5 . . Fast Attach 67 | 6 5 19 12 3 1 6 . . . . 3 6 6 Attach 30 | . 3 4 8 3 3 . . 2 1 . 6 . . Detach 24 | . 3 . 11 1 2 3 . . . . 3 . 1 Swap 48 | . 1 17 17 6 . 5 . . 1 . 1 . . Drop 79 | . 5 24 24 10 . 7 1 . 1 . 6 . 1 Fire 315 | . 85 102 63 15 3 6 . 5 20 . 10 6 . Melee . | . . . . . . . . . . . . . . Ram . | . . . . . . . . . . . . . . Kick . | . . . . . . . . . . . . . . Crush . | . . . . . . . . . . . . . . Escape Stasis . | . . . . . . . . . . . . . . Rewire 5 | . . . . . . . . . 3 . . 2 . Trap . | . . . . . . . . . . . . . . Miscellaneous . | . . . . . . . . . . . . . . Route ------- -11/Scrapyard -10/Materials (discovered 3 exits: *Mat x2 / [*Min]) -9/Materials (discovered 3 exits: *Mat x3) -8/Materials -7/Factory -6/Factory -6/Waste -6/Factory -5/Factory -5/Upper Caves -5/Upper Caves -4/Factory (discovered 2 exits: *Upp x2) -4/Upper Caves -4/Upper Caves History --------- Turn | Location | Event 2 | -11/Scrapyard | Met Revision 17 2 | -11/Scrapyard | Discovered new exit (range 16) 118 | -11/Scrapyard | Entered Materials 309 | -10/Materials | Build established: Mutant 587 | -10/Materials | Core integrity fell below 50% 659 | -10/Materials | Lost 3 parts (2n1w) 871 | -10/Materials | Discovered new exit (range 12) 950 | -10/Materials | Core integrity fell below 20% 1019 | -10/Materials | Discovered new exit (range 16) 1192 | -10/Materials | Discovered new exit (range 8) 1265 | -10/Materials | Entered another Materials area 1265 | -9/Materials | Evolved 2 slots: Utility x2 1635 | -9/Materials | Build established: Scavenger-Mutant 3144 | -9/Materials | Discovered new exit (range 16) 3267 | -9/Materials | Lost 3 parts (1p2w) 3747 | -9/Materials | Identified exit to Materials 3823 | -9/Materials | Repaired Imp. Heat Sink 3851 | -9/Materials | Repaired Sml. Storage Unit 3931 | -9/Materials | Repaired Lgt. Nuclear Core 4044 | -9/Materials | Entered another Materials area 4044 | -8/Materials | Evolved 2 slots: Utility x1, Weapon x1 4380 | -8/Materials | Build established: Scavenger-Tank 4958 | -8/Materials | Discovered new exit (range 12) 5032 | -8/Materials | Found Prototype Device 5040 | -8/Materials | Lost 5 parts (2n1u2w) 5528 | -8/Materials | Build established: Tank 6314 | -8/Materials | Entered Factory 6314 | -7/Factory | Evolved 2 slots: Propulsion x2 6325 | -7/Factory | Discovered new exit (range 18) 6824 | -7/Factory | Repaired Adv. Treads 6929 | -7/Factory | Repaired Reactive Plating 7314 | -7/Factory | Entered another Factory area 7314 | -6/Factory | Evolved 2 slots: Utility x1, Weapon x1 7446 | -6/Factory | Sucked down chute 7446 | -6/Factory | Entered Waste 7447 | -6/Waste | Met a frightened Derelict 7472 | -6/Waste | Spotted C-40 Crusher 7486 | -6/Waste | Destroyed C-40 Crusher 7519 | -6/Waste | Spotted C-40 Crusher 7524 | -6/Waste | Destroyed C-40 Crusher 7561 | -6/Waste | Warlord forces began an assault 7563 | -6/Waste | Spotted C-40 Crusher 7569 | -6/Waste | Spotted C-40 Crusher 7572 | -6/Waste | Allies destroyed C-40 Crusher 7572 | -6/Waste | Spotted C-40 Crusher 7574 | -6/Waste | Destroyed C-40 Crusher 7575 | -6/Waste | Allies destroyed C-40 Crusher 7589 | -6/Waste | Spotted C-40 Crusher 7602 | -6/Waste | Allies destroyed C-40 Crusher 7633 | -6/Waste | Lost 3 allies 7847 | -6/Waste | Build established: Scavenger-Gunner 7960 | -6/Waste | Discovered new exit (range 13) 8016 | -6/Waste | Entered Factory 8016 | -6/Factory | Accompanied by 16 allies 8029 | -6/Factory | Discovered new exit (range 16) 8093 | -6/Factory | Entered another Factory area 8093 | -5/Factory | Accompanied by 16 allies 8093 | -5/Factory | Evolved 2 slots: Utility x1, Weapon x1 8181 | -5/Factory | Spotted B-75 Beast 8190 | -5/Factory | Allies destroyed B-75 Beast 8351 | -5/Factory | Lost 3 allies 8478 | -5/Factory | Lost 5 allies 8539 | -5/Factory | Discovered new exit (range 14) 8580 | -5/Factory | Entered Upper Caves 8580 | -5/Upper Caves | Accompanied by 5 allies 8752 | -5/Upper Caves | Learned location of 1 exit from Factory 8973 | -5/Upper Caves | Identified exit to Upper Caves 8981 | -5/Upper Caves | Found Alien Artifact 8995 | -5/Upper Caves | Identified Dimensional Node Initializer 8995 | -5/Upper Caves | Initialized slip node 9325 | -5/Upper Caves | Build established: Scavenger-Bomber 9561 | -5/Upper Caves | Attracted the attention of an 0b10 checkpoint 9821 | -5/Upper Caves | Attracted the attention of an 0b10 outpost 9841 | -5/Upper Caves | Destroyed 8 combat bots 10218 | -5/Upper Caves | Encountered a Warlord checkpoint 11769 | -5/Upper Caves | Entered another Upper Caves area 11769 | -5/Upper Caves | Accompanied by 5 allies 11792 | -5/Upper Caves | Discovered new exit (range 9) 11808 | -5/Upper Caves | Entered Factory 11808 | -4/Factory | Accompanied by 5 allies 11808 | -4/Factory | Evolved 2 slots: Power x1, Utility x1 11809 | -4/Factory | Identified exit to Upper Caves 12053 | -4/Factory | Repaired Enh. Armored Medium Treads 12277 | -4/Factory | Lost 5 allies 12314 | -4/Factory | Released all parts (12) 12340 | -4/Factory | Lost 8 parts (2u6w) 12351 | -4/Factory | Discovered exit to Upper Caves (range 10) 12356 | -4/Factory | Entered Upper Caves 12599 | -4/Upper Caves | Build established: Mutant 13367 | -4/Upper Caves | Attracted the attention of an 0b10 checkpoint 13374 | -4/Upper Caves | Released all parts (5) 13470 | -4/Upper Caves | Learned location of Quarantine (-3) 13597 | -4/Upper Caves | Spotted B-86 Titan 13605 | -4/Upper Caves | Core integrity fell below 50% 13645 | -4/Upper Caves | Discovered new exit (range 6) 13648 | -4/Upper Caves | Entered another Upper Caves area 13840 | -4/Upper Caves | Core integrity fell below 20% 14079 | -4/Upper Caves | Attracted the attention of an 0b10 checkpoint 14115 | -4/Upper Caves | Destroyed by H-77 Assassin with Coil Gun Last Messages --------------- 13973_ Acquired 5 matter. 13974_ Acquired Machine Analyzer. 13978_ Discarded Authchip [Weapon]. 13989_ Acquired 4 matter. 13990_ Acquired 11 matter. 14004_ Acquired Adv. Hacking Suite. 14012_ Acquired 1 matter. 14020_ System corrupted: IFF burst signal emitted. 14059_ Acquired 9 matter. 14062_ Slug penetrates Wall. 14079_ Y-64 Sentinel: "INTERCEPTING UNREGISTERED DERELICT." 14089_ Slug penetrates Wall. 14104_ Slug penetrates H-77 Assassin. 14112_ C-30 ARC bursts open, deploying its payload. 14112_ S-27 Virus unfolds itself. 14115_ Penetrated by Slug. [Achievement: 10k Club] Map ----- +----------------------------------------------------+ | ?# ## "" ##?# ##??????????????????###### | | ?#### # $"""" ### ##????????????????## | | ###### """ ## #???????????????## | | #### " #????????????????# | | ### " ##???????????????## # | | #### """" #???????????????## | | #?# " ## ##??????????????## | | #?# ### #??????????????## # | | ######## ##?# #?????????????## ## | | ###??# #??# ##????????????# ####? | | ##?# #??# #???????????## ######???? | | ## ### ##?# #??????????## ####?????? | | ### ### #?????????## ####??? | | #?# ## ##???###### #??? | | ##?# ## ## ##?## ## #?? | | ##??## ### ### ### ######## #? | | ##???## #?#### ## #???????? #? | | ????## #????# #????????? # | | ????# ###### % +?????????? # | | ????# ### #??++###???? # | | ????# s#?## #? #???? ## | | ????# ####### ##?# #? #?? #? | | ????# #?????### #### ## ## | | ????# #???????# ### | | ???# ???????### sh #? | | ?? ????????##@ #? | | ?# ???????## ## #? | | ?# ?????## ###### #? | | ?# ????# ##????? # ##? | | ?# ##??## #?????? ##????? | | ?# ##???# ##?????? #?????? | | ? ## ##????# ##?????? ????? | | ?? ## ?? #?????## ### ###???? ### ??? | | ?????## ?? ##??????###??## #????? ##??? ?? | | ??????? ?? #??????????????# ##?????###???????? | | ????????????????????????????## ##????????????????? | | ?????????????????????????????###?????????????????? | | ?????????????????????????????????????????????????? | | ?????????????????????????????????????????????????? | | ?????????????????????????????????????????????????? | | ?????????????????????????????????????????????????? | | ?????????????????????????????????????????????????? | | ?????????????????????????????????????????????????? | | ?????????????????????????????????????????????????? | | ?????????????????????????????????????????????????? | | ?????????????????????????????????????????????????? | | ?????????????????????????????????????????????????? | | ?????????????????????????????????????????????????? | | ?????????????????????????????????????????????????? | | ?????????????????????????????????????????????????? | +----------------------------------------------------+ Best States ------------- Heat Dissipation 70 Coolant Potential 65 Energy Generation 34 Energy Capacity 520 Matter Stores 300 Matter Capacity 300 Sight Range 22 Terrain Scan Density 10 Jamming Range 16 Armor Coverage 300 Resistance: KI 20 Resistance: TH 10 Point Defense Rating 160 Evasion (%) 62 Launcher Accuracy 30 Armor Integrity Analysis 30 Recoil Reduction 4 Offensive Hacking 20 Authchip Count 1 Item Schematics ----------------- None Robot Schematics ------------------ None Fabricated ------------ Nothing Alien Tech Used ----------------- Dimensional Node Initializer Achievements -------------- 10k Club Alien Tech Quick And Dirty Respectable Loadout Challenges ------------ None Game ------ Seed LobotomyGatlingKatana Manual? 0 Play Time 02:00:48 Cumulative 16.3 hours Start 2024.04.15 @ 20:39:39 End 2024.04.15 @ 22:45:27 Sessions 1 Manual Loads 0 Difficulty Rogue Special Mode None Game No. 28 Rogue 26 Adventurer 0 Explorer 2 Win Type - Total 0 Types 0/0/0/0/0/0/0/0/0 Lore% 7 Gallery% 21 Achievement% 20 Wizard Run 0 Options --------- Layout 2 ASCII 0 Keyboard 1 Movement Vi Keybinds 0 Fullscreen 2 Font 32/SmallcapsGlow Map View 50x44 Zoom Use 0% Tactical HUD 1 Map Filters NONE Filters NONE Steam 1 RUN: 2c31e9c6-34ef-4339-bce4-b958c49a8fac